Cogmind - Beta 15 @@@ ROGUE MODE // 2025.05.10 @ 11:26:27 Player: CRS Result: Destroyed self with Mini Grenade Launcher Performance ------------- Evolutions (2) 1000 Regions Visited (6) 1200 Robots Destroyed (20) 100 Value Destroyed (658) 658 Prototype IDs (25) 500 Alien Tech Used (0) 0 Bonus (461) 461 TOTAL SCORE: 3919 Bonus ------- Follower Combat Kills 161 Aligned with FarCom 300 Cogmind --------- Core Integrity 0/550 Matter 405/500 Energy 100/100 System Corruption 0% Temperature Cool (9) Movement Rolling (115) Ox1 Location -8/Materials Parts ------- > --- POWER (2) -------- (None) > --- PROPULSION (3) --- Armored Huge Wheel > --- UTILITY (3) ------ High-capacity Storage Unit High-capacity Matter Pod > --- WEAPON (3) ------- Mini Grenade Launcher > --- INVENTORY (20) --- Light Ion Engine Nuclear Core Light Treads Aluminum Leg Improved Sensor Array Weapon Shielding Light Armor Plating Hardened Light Armor Plating Precision Shock Rifle Particle Gun Particle Gun Light Assault Rifle Heavy Assault Rifle Gauss Rifle Rocket Launcher Improved Datajack Peak State ------------ > --- POWER ------------ Light Ion Engine > --- PROPULSION ------- Wheel Armored Huge Wheel > --- UTILITY ---------- High-capacity Storage Unit High-capacity Matter Pod High-capacity Matter Pod > --- WEAPON ----------- Precision Shock Rifle Heavy Laser Field Lobotomy Kit > --- INVENTORY -------- Light Ion Engine Nuclear Core Light Treads Aluminum Leg Armored Wheel Armored Huge Wheel Improved Sensor Array Weapon Shielding Light Armor Plating Precision Shock Rifle Particle Gun Particle Gun Precision Beam Rifle Light Assault Rifle Improved Datajack Improved Datajack [Rating: 36] Favorites ----------- Power Light Ion Engine Engine Light Ion Engine Power Core Light Nuclear Core Propulsion Aluminum Leg Leg Aluminum Leg Wheel Wheel Utility High-capacity Matter Pod Storage High-capacity Matter Pod Weapon Heavy Laser Energy Gun Heavy Laser Ballistic Gun Light Assault Rifle Ballistic Cannon Light Cannon Launcher Mini Grenade Launcher Special Weapon Field Lobotomy Kit Special Melee Weapon Improved Datajack Build | -11 -10 -9 -9 -9 -8 -8 ------- Run | Yrd Mat Mat Min Exi Min Mat Slots Evolved 4 | . . 2 . . . 2 Power 1 | . . . . . . 1 Propulsion 1 | . . 1 . . . . Utility 1 | . . 1 . . . . Weapon 1 | . . . . . . 1 Parts Attached 38 | 6 4 2 4 3 7 12 Power 6 | 1 1 . . 1 1 2 Engine 5 | 1 . . . 1 1 2 Core 1 | . 1 . . . . . Reactor . | . . . . . . . Propulsion 13 | 2 . . 3 . 4 4 Treads . | . . . . . . . Leg 7 | . . . 3 . 4 . Wheel 6 | 2 . . . . . 4 Hover . | . . . . . . . Flight . | . . . . . . . Utility 4 | 1 1 1 . 1 . . Device . | . . . . . . . Storage 4 | 1 1 1 . 1 . . Processor . | . . . . . . . Hackware . | . . . . . . . Protection . | . . . . . . . Artifact . | . . . . . . . Weapon 15 | 2 2 1 1 1 2 6 Energy Gun 7 | 1 2 . 1 . 1 2 Energy Cannon . | . . . . . . . Ballistic Gun 2 | 1 . . . . . 1 Ballistic Cannon 1 | . . 1 . . . . Launcher 1 | . . . . . . 1 Special Weapon 3 | . . . . 1 1 1 Impact Weapon . | . . . . . . . Slashing Weapon . | . . . . . . . Piercing Weapon . | . . . . . . . Special Melee Weapon 1 | . . . . . . 1 Unidentified Prototypes 2 | . . . . . . 2 Parts Lost 25 | . 3 . 6 . 4 12 Power 6 | . 1 . 1 . 1 3 Propulsion 7 | . 1 . 1 . 2 3 Utility 2 | . . . 1 . . 1 Weapon 10 | . 1 . 3 . 1 5 Highest Loss Streak 7 | . 2 . 6 . 2 7 To Critical Strikes . | . . . . . . . Average Backups 8 | 4 7 8 6 4 8 15 Power 2 | . 1 1 1 2 2 1 Propulsion 1 | 2 3 3 2 . . 3 Utility 1 | . . 1 1 1 1 3 Weapon 3 | 1 1 3 2 . 3 5 Tool/Special . | . . . . . . . Unused Backups 22 | . 2 . 1 . 2 17 Power 4 | . . . . . 2 2 Propulsion 3 | . 2 . . . . 1 Utility 4 | . . . . . . 4 Weapon 10 | . . . 1 . . 9 Tool/Special 1 | . . . . . . 1 Average Slot Usage (%) 83 | . 85 67 60 77 95 69 Engine 8 | . 5 . . 10 10 7 Core 1 | . 7 11 4 . . . Leg 20 | . . . 7 33 29 1 Wheel 5 | . 20 9 6 . . 14 Storage 28 | . 23 24 30 22 33 26 Energy Gun 9 | . 13 11 6 . 10 12 Ballistic Gun 1 | . 14 1 . . . 1 Special Weapon 7 | . . . . 11 10 3 Peak Build Rating 36 | 6 8 9 9 10 25 36 Average Rating 17 | 3 7 8 6 8 23 23 On Entrance 8 | . 5 8 9 5 10 23 Naked Turns . | . . . . . . . Heaviest Build 67 | 11 17 22 22 52 63 67 Greatest Support 40 | 20 20 10 30 30 35 40 Greatest Overweight (x) 5 | 1 1 5 4 1 2 4 Average Overweight (x) . | . . 1 1 . 1 1 Largest Inventory Capacity 20 | 8 8 8 8 20 20 20 Average Capacity 15 | 6 8 8 7 6 20 20 Most Carried 19 | 7 8 8 8 5 13 19 Average Carried 9 | 4 7 8 6 4 8 16 Final Capacity 20 | 8 8 8 5 20 20 20 Final Carried 16 | 7 8 8 3 5 13 16 Class Distribution -------------------- 79% | Mutant 12% | Scavenger-Mutant 4% | Scavenger-Skirmisher 3% | Skirmisher Dominant Class ---------------- Mutant | -10/Materials Mutant | -9/Materials Mutant | -9/Mines Mutant | -9/Exiles Mutant | -8/Mines Mutant | -8/Materials Resources | -11 -10 -9 -9 -9 -8 -8 ----------- Run | Yrd Mat Mat Min Exi Min Mat Matter Collected 1114 | 231 172 50 . . 416 245 Remotely . | . . . . . . . Salvage Created 685 | . 172 46 . . 59 408 Parts 41 | . 8 3 . . 3 27 Haulers Intercepted . | . . . . . . . Recyclers Shooed . | . . . . . . . Parts Field Recycled . | . . . . . . . Retrieved Matter . | . . . . . . . Parts Self-Destructed . | . . . . . . . Prevented . | . . . . . . . Kills | -11 -10 -9 -9 -9 -8 -8 ------- Run | Yrd Mat Mat Min Exi Min Mat Combat Hostiles Destroyed 16 | . 4 1 . . 1 10 Guns 12 | . 4 . . . 1 7 Cannons 1 | . . 1 . . . . AOE 3 | . . . . . . 3 Classes Destroyed 7 | . 1 1 . . . 5 Worker 1 | . . . . . . 1 Builder 2 | . . . . . . 2 Watcher 1 | . . . . . . 1 Swarmer 3 | . . . . . . 3 Grunt 8 | . 4 . . . 1 3 Sentry 4 | . . 1 . . . 3 Hunter 1 | . . . . . . 1 Best Kill Streak 4 | . 1 1 . . 1 4 Combat Bots Only 3 | . 1 1 . . 1 3 Max Kills in Single Turn 2 | . 1 1 . . 1 2 Gunslinging . | . . . . . . . Exploded 1 | . . . . . . 1 Melee . | . . . . . . . Uniques/NPCs Destroyed . | . . . . . . . Combat | -11 -10 -9 -9 -9 -8 -8 -------- Run | Yrd Mat Mat Min Exi Min Mat Hostile Shots Fired 275 | . 42 4 15 . 41 173 Missed 57 | . 10 . 2 . 6 39 Hits 218 | . 32 4 13 . 35 134 Projectile 218 | . 32 4 13 . 35 134 AOE 15 | . . . 15 . . . Critical Strikes 6 | . 1 . . . 1 4 Damage Taken 3461 | . 411 58 549 . 538 1905 Core 955 | . 128 29 134 . 102 562 Absorbed by Shields . | . . . . . . . Regen/Repaired (Parts) 30 | . . 30 . . . . Core Remaining (%) 60 | 100 48 . . . 33 . Volleys Fired 114 | . 26 4 6 . 15 63 Largest 3 | . 2 2 2 . 2 3 Hottest 150 | . 70 70 70 . 69 150 Shots Fired 166 | . 45 8 7 . 16 90 Gun 132 | . 45 4 4 . 13 66 Cannon 7 | . . 4 3 . . . Launcher 17 | . . . . . . 17 Special 10 | . . . . . 3 7 Kinetic 55 | . 26 4 3 . . 22 Thermal 78 | . 19 4 1 . 13 41 Explosive 17 | . . . . . . 17 Electromagnetic 11 | . . . 3 . . 8 Robot Hit Streak 13 | . 8 3 3 . 5 13 Robot Miss Streak 3 | . 3 3 2 . 2 2 Penetration Max . | . . . . . . . Secondary Targets 3 | . 1 . . . . 2 Max Gunslinging Chain 1 | . 1 . . . . 1 Shots Hit Robots 106 | . 26 4 4 . 12 60 Core Hits 52 | . 11 1 2 . 4 34 Critical Kills . | . . . . . . . Critical Parts Destroyed 1 | . . . . . . 1 Critical Strikes 3 | . 2 . . . . 1 Burn 2 | . 2 . . . . . Destroy 1 | . . . . . . 1 Melee Attacks 1 | . . . . . . 1 Impact . | . . . . . . . Slashing . | . . . . . . . Piercing . | . . . . . . . Sneak Attacks . | . . . . . . . Combat Hostiles . | . . . . . . . Follow-up Attacks . | . . . . . . . Damage Inflicted 2036 | . 245 61 74 . 173 1483 Guns 1139 | . 245 10 36 . 173 675 Cannons 89 | . . 51 38 . . . Explosions 808 | . . . . . . 808 Melee . | . . . . . . . Ramming . | . . . . . . . Kinetic 312 | . 120 51 38 . . 103 Thermal 759 | . 125 10 . . 173 451 Explosive 775 | . . . . . . 775 Electromagnetic 190 | . . . 36 . . 154 Impact . | . . . . . . . Slashing . | . . . . . . . Piercing . | . . . . . . . Highest Corruption . | . . . . . . . Average Corruption . | . . . . . . . Corruption Purged . | . . . . . . . Corruption Blocked . | . . . . . . . Overload Shots . | . . . . . . . Overflow Damage . | . . . . . . . Projectiles . | . . . . . . . Explosions . | . . . . . . . Melee . | . . . . . . . Knockbacks . | . . . . . . . Impact . | . . . . . . . Kinetic . | . . . . . . . Secondary . | . . . . . . . Self-Inflicted Damage 89 | . . . . . . 89 Shots 6 | . . . . . . 6 Rammed 1 | . . . . . . 1 Targets Rammed 1 | . . . . . . 1 Kicked . | . . . . . . . Crushed . | . . . . . . . Highest Temperature 407 | . 113 30 4 . 115 407 Average Temperature 93 | . 45 12 3 . 41 155 Received Heat Transfer 969 | . 249 18 . . 288 414 Effects 2 | . . . . . . 2 Matter Decay 2 | . . . . . . 2 Siege Activations . | . . . . . . . Martial Activations . | . . . . . . . Shielding Activations . | . . . . . . . Robots Disrupted . | . . . . . . . Combat Hostiles . | . . . . . . . Robots Corrupted . | . . . . . . . Combat Hostiles . | . . . . . . . Parts Fried . | . . . . . . . Impact Corruptions . | . . . . . . . Robots Melted . | . . . . . . . Combat Hostiles . | . . . . . . . Parts Melted 6 | . . . . . 1 5 Heat Transferred 1765 | . 506 25 . . 333 901 Parts Sabotaged . | . . . . . . . Parts Stolen . | . . . . . . . Parts Stripped . | . . . . . . . Power Chain Reactions 1 | . . . . . . 1 Alert | -11 -10 -9 -9 -9 -8 -8 ------- Run | Yrd Mat Mat Min Exi Min Mat Maximum Alert Level . | . . . . . . . Low Security (%) 100 | 100 100 100 100 . 100 100 Level 1 . | . . . . . . . Level 2 . | . . . . . . . Level 3 . | . . . . . . . Level 4 . | . . . . . . . Level 5 . | . . . . . . . High Security . | . . . . . . . Max Security . | . . . . . . . Peak Influence 140 | . 47 30 15 . 66 140 Initial 3 | . . 1 3 . . 3 Average 10 | . 14 5 . . 5 23 Influence Increases 767 | . 142 30 15 . 180 400 Destroy 0b10 Robot/C 460 | . 80 20 . . 160 200 Destroy 0b10 Robot/NC 20 | . . . . . . 20 Destroy Leader 102 | . 20 10 . . 10 62 Allied During Kill 10 | . . . . . 10 . Successful Hack 16 | . 12 . . . . 4 Disable Machine 30 | . . . . . . 30 Destroy Structure 84 | . . . . . . 84 Lose Combat Pursuer 45 | . 30 . 15 . . . Influence Decreases 627 | . 137 25 20 5 171 269 Entered New Map 22 | . . 4 7 5 . 6 Time Decay 460 | . 107 21 13 . 151 168 Lost Part 105 | . 30 . . . . 75 Lost Ally 40 | . . . . . 20 20 Squads Dispatched 8 | . 1 1 . . . 6 Investigation . | . . . . . . . Extermination . | . . . . . . . Reinforcement 5 | . 1 1 . . . 3 Assault . | . . . . . . . Garrison 3 | . . . . . . 3 Intercept . | . . . . . . . Searches Triggered . | . . . . . . . Construction Impeded . | . . . . . . . Haulers Reinforced . | . . . . . . . Active Scanning Responses . | . . . . . . . Cargo Convoy Interrupts . | . . . . . . . Stealth | -11 -10 -9 -9 -9 -8 -8 --------- Run | Yrd Mat Mat Min Exi Min Mat Distress Signals 2 | . . . . . . 2 Communications Jammed . | . . . . . . . Distress Signals . | . . . . . . . Times Spotted 40 | . 10 2 2 . 12 14 Peak Tracking Total 4 | . 4 1 2 . 3 4 Tactical Retreats 2 | . 1 . 1 . . . Traps | -11 -10 -9 -9 -9 -8 -8 ------- Run | Yrd Mat Mat Min Exi Min Mat Traps Triggered 1 | . . . . . . 1 Indirectly . | . . . . . . . Trap Hack Attempts . | . . . . . . . Triggered . | . . . . . . . Disarmed . | . . . . . . . Reprogrammed . | . . . . . . . Reused . | . . . . . . . Traps Extracted . | . . . . . . . Installed . | . . . . . . . Triggered . | . . . . . . . Machines | -11 -10 -9 -9 -9 -8 -8 ---------- Run | Yrd Mat Mat Min Exi Min Mat Machines Disabled 2 | . . . . . . 2 Max in Single Turn 1 | . . . . . . 1 Machines Repaired . | . . . . . . . Machines Dismantled . | . . . . . . . Machines Sabotaged . | . . . . . . . Overloaded Fab Kills . | . . . . . . . Hacking | -11 -10 -9 -9 -9 -8 -8 --------- Run | Yrd Mat Mat Min Exi Min Mat Machines Accessed 11 | . 2 3 . 5 . 1 Terminals 3 | . 2 1 . . . . Fabricators . | . . . . . . . Repair Stations 1 | . . 1 . . . . Recycling Units 1 | . . 1 . . . . Scanalyzers . | . . . . . . . Garrison Access 1 | . . . . . . 1 Total Hacks 61 | . 3 7 . 50 . 1 Successful 60 | . 3 6 . 50 . 1 Failed 1 | . . 1 . . . . Catastrophic . | . . . . . . . Database Lockouts . | . . . . . . . Manual 1 | . . . . 1 . . Terminals 6 | . 3 3 . . . . Fabricators . | . . . . . . . Repair Stations 3 | . . 3 . . . . Recycling Units 1 | . . 1 . . . . Scanalyzers . | . . . . . . . Garrison Access 1 | . . . . . . 1 Terminal Hacks 56 | . 3 3 . 50 . . Record 52 | . 1 2 . 49 . . Locate Traps 1 | . . 1 . . . . Security Status 1 | . 1 . . . . . Investigation Status 1 | . 1 . . . . . Proto ID Catalog 1 | . . . . 1 . . Fabricator Hacks . | . . . . . . . Repair Station Hacks 2 | . . 2 . . . . Scan Component 1 | . . 1 . . . . Repair 1 | . . 1 . . . . Recycling Unit Hacks 1 | . . 1 . . . . Report Inventory 1 | . . 1 . . . . Scanalyzer . | . . . . . . . Garrison Access Hacks 1 | . . . . . . 1 Unlock Access 1 | . . . . . . 1 Unauthorized Hacks . | . . . . . . . Terminals . | . . . . . . . Fabricators . | . . . . . . . Repair Stations . | . . . . . . . Recycling Units . | . . . . . . . Scanalyzers . | . . . . . . . Garrison Access . | . . . . . . . Data Cores Recovered . | . . . . . . . Used . | . . . . . . . Hacking Detections 3 | . 1 1 . . . 1 Full Trace Events . | . . . . . . . Feedback Events . | . . . . . . . Feedback Blocked . | . . . . . . . Robot Schematics Acquired . | . . . . . . . Robots Built . | . . . . . . . Authchips . | . . . . . . . Time . | . . . . . . . Total Robot Build Rating . | . . . . . . . Part Schematics Acquired . | . . . . . . . Parts Built . | . . . . . . . Authchips . | . . . . . . . Time . | . . . . . . . Total Part Build Rating . | . . . . . . . Parts Repaired 1 | . . 1 . . . . Time 26 | . . 26 . . . . Parts Recycled . | . . . . . . . Recycled Matter . | . . . . . . . Retrieved Matter . | . . . . . . . Retrieved Components . | . . . . . . . Parts Scanalyzed . | . . . . . . . Part Schematics Acquired . | . . . . . . . Parts Damaged . | . . . . . . . Bothacking | -11 -10 -9 -9 -9 -8 -8 ------------ Run | Yrd Mat Mat Min Exi Min Mat Used RIF Installer . | . . . . . . . Robots Hacked 1 | . . . . . . 1 Non-combat . | . . . . . . . Combat 1 | . . . . . . 1 Robot Hacks Applied 1 | . . . . . . 1 parse_system 1 | . . . . . . 1 Relay Couplers Released . | . . . . . . . Fabnet Peak Effective % . | . . . . . . . Robots Rewired . | . . . . . . . Allies Hacked . | . . . . . . . Hacks Repelled . | . . . . . . . Allies | -11 -10 -9 -9 -9 -8 -8 -------- Run | Yrd Mat Mat Min Exi Min Mat Total Allies 4 | . . . . . 3 1 Largest Group 2 | . . . . . 2 1 Highest-Rated Group 29 | . . . . . 29 15 Highest-Rated Ally 29 | . . . . . 29 15 Total Orders . | . . . . . . . Ally Attacks 28 | . . . . . 27 1 Total Damage 488 | . . . . . 473 15 Kills 7 | . . . . . 7 . Allies Corrupted . | . . . . . . . Allies Melted 1 | . . . . . 1 . Field Lobotomies 4 | . . . . . 3 1 Intel | -11 -10 -9 -9 -9 -8 -8 ------- Run | Yrd Mat Mat Min Exi Min Mat Active Infowar (turns) . | . . . . . . . Robot Analysis Total . | . . . . . . . Derelict Logs Recovered . | . . . . . . . Drone Launches . | . . . . . . . Drone Recoveries . | . . . . . . . Exploration | -11 -10 -9 -9 -9 -8 -8 ------------- Run | Yrd Mat Mat Min Exi Min Mat Turns Passed 3387 | 52 303 192 104 609 1552 575 Spaces Moved 2051 | 44 257 155 70 487 714 324 Core 31 | 12 . 11 8 . . . Treads . | . . . . . . . Legs 1230 | . . . 18 487 714 11 Wheels 790 | 32 257 144 44 . . 313 Hover . | . . . . . . . Flight . | . . . . . . . Fastest Speed 50 | 50 80 95 95 120 190 105 Average Speed 146 | 79 87 113 124 123 209 117 Slowest Speed 300 | 95 95 300 250 190 260 260 Overloaded Moves . | . . . . . . . Propulsion Burnouts . | . . . . . . . Robots Hopped . | . . . . . . . Potential Cave-ins . | . . . . . . . Cave-ins Triggered . | . . . . . . . Exploration Rate (%) 42 | 3 42 15 23 90 95 26 Regions Visited 6 Branch Regions 3 Pre-discovered Areas 1 | . . . . 1 . . Known Exits Taken . | . . . . . . . Unknown Exits Taken 6 | 1 1 1 1 1 1 . Scrap Searched 1 | . . . . . 1 . Spaces Dug 19 | . . . . . . 19 Terrain Destroyed 121 | . . . . . . 121 Melee . | . . . . . . . Projectile . | . . . . . . . AOE 121 | . . . . . . 121 Terrain Rammed . | . . . . . . . Walls Destroyed . | . . . . . . . Machines Disabled . | . . . . . . . Actions | -11 -10 -9 -9 -9 -8 -8 --------- Run | Yrd Mat Mat Min Exi Min Mat Total 2278 | 60 294 162 80 493 756 433 Wait 2 | . . . . . . 2 Move 2045 | 43 256 154 69 486 713 324 Hop . | . . . . . . . Pick Up 55 | 10 4 . 1 4 17 19 Fast Attach 10 | 2 4 3 . 1 . . Attach 32 | 4 1 . 4 2 7 14 Detach 1 | 1 . . . . . . Swap . | . . . . . . . Drop 15 | . 3 1 . . 4 7 Fire 114 | . 26 4 6 . 15 63 Melee 1 | . . . . . . 1 Ram 1 | . . . . . . 1 Kick . | . . . . . . . Crush . | . . . . . . . Escape Stasis . | . . . . . . . Rewire . | . . . . . . . Trap . | . . . . . . . Miscellaneous 2 | . . . . . . 2 Route ------- -11/Scrapyard -10/Materials -9/Materials -9/Mines -9/Exiles -8/Mines (discovered 2 exits: *Mat x2) -8/Materials (discovered 2 exits: [*Fac] / Gar) History --------- Turn | Location | Event 11 | -11/Scrapyard | Discovered new exit (range 15) 53 | -11/Scrapyard | Entered Materials 311 | -10/Materials | Core integrity fell below 50% 313 | -10/Materials | Build established: Mutant 325 | -10/Materials | Discovered new exit (range 8) 356 | -10/Materials | Entered another Materials area 356 | -9/Materials | Evolved 2 slots: Propulsion x1, Utility x1 398 | -9/Materials | Repaired Wheel 537 | -9/Materials | Discovered new exit (range 6) 548 | -9/Materials | Entered Mines 549 | -9/Mines | Assembled infested the area 555 | -9/Mines | Met a Derelict bent on vengeance 646 | -9/Mines | Discovered new exit (range 5) 652 | -9/Mines | Entered Exiles 657 | -9/Exiles | Lost 6 parts (1p1n1u3w) 689 | -9/Exiles | Met 8R-AWN 713 | -9/Exiles | Met EX-HEX 747 | -9/Exiles | Met EX-BIN 771 | -9/Exiles | Aligned with FarCom system 773 | -9/Exiles | Given EX-Vault access code 843 | -9/Exiles | Opened EX-Vault 848 | -9/Exiles | Found Prototype Special Weapon 852 | -9/Exiles | Identified Field Lobotomy Kit 877 | -9/Exiles | Warned to stay clear of 0b10 Research branches 915 | -9/Exiles | Met EX-DEC 921 | -9/Exiles | Learned location of Zion (-7) 1004 | -9/Exiles | Visited The Gauntlet 1184 | -9/Exiles | Discovered new exit (range 14) 1261 | -9/Exiles | Left Exiles lab with Field Lobotomy Kit 1261 | -9/Exiles | Entered Mines 1286 | -8/Mines | Core integrity fell below 50% 1294 | -8/Mines | Assimilated G-50 Soldier with FLK Orb 1300 | -8/Mines | Assimilated G-47 Trooper with FLK Orb 1944 | -8/Mines | Assimilated B-36 Bruiser with FLK Orb 2548 | -8/Mines | Discovered new exit (range 5) 2641 | -8/Mines | Discovered new exit (range 11) 2712 | -8/Mines | Build established: Scavenger-Mutant 2813 | -8/Mines | Entered Materials 2813 | -8/Materials | Accompanied by 1 ally 2813 | -8/Materials | Evolved 2 slots: Power x1, Weapon x1 2884 | -8/Materials | Identified exit to Garrison 2934 | -8/Materials | Garrison activated, responded to threat 3046 | -8/Materials | Assimilated Y-45 Defender with FLK Orb 3196 | -8/Materials | Core integrity fell below 50% 3223 | -8/Materials | Lost 7 parts (2p2n3w) 3330 | -8/Materials | Core integrity fell below 20% 3346 | -8/Materials | Discovered new exit (range 16) 3388 | -8/Materials | Destroyed self with Mini Grenade Launcher Last Messages --------------- ALERT: Hostile activity reported, dispatching reinforcements to area. U-05 Engineer builds a Wall. U-05 Engineer lays Concrete. Critical hit (Burn: +37). EXIT=FOUND K-01 Serf destroyed. U-05 Engineer lays Concrete. U-05 Engineer builds a Wall. Hcp. Matter Pod destroyed. The unstable cave ceiling collapses. Terminal disabled. Arm. Wheel destroyed. The unstable cave ceiling collapses. U-05 Engineer lays Concrete. G-47 Trooper destroyed. U-05 Engineer destroyed. G-47 Trooper destroyed. The unstable cave ceiling collapses. U-05 Engineer destroyed. Map ----- +----------------------------------------------------+ | # ##[ """ #?????????????????????????????? | | # """ [ ## #???????#########?????????????? | | # """ ##"" """ #???????# #?????????????? | | # """ ##"T """ #???????# """ #?